Cogmind - Beta 16 *** ADVENTURER MODE // 2025.10.23 @ 12:37:17 Player: pastel Result: Self-destructed Performance ------------- Evolutions (1) 500 Regions Visited (2) 400 Robots Destroyed (22) 110 Value Destroyed (400) 400 Prototype IDs (5) 100 Alien Tech Used (0) 0 Bonus (0) 0 TOTAL SCORE: 1510 Bonus ------- None Cogmind --------- Core Integrity 375/400 Matter 262/300 Energy 400/400 System Corruption 0% Temperature Cool (0) Movement Walking (120) Location -9/Materials Parts ------- > --- POWER (2) -------- Ion Engine Ion Engine > --- PROPULSION (2) --- Aluminum Leg Aluminum Leg > --- UTILITY (3) ------ Small Storage Unit Targeting Computer Targeting Computer > --- WEAPON (2) ------- Light Assault Rifle Light Assault Rifle > --- INVENTORY (8) ---- Improved Aluminum Leg Heat Sink Heat Sink Visual Processing Unit Improved Grenade Launcher Peak State ------------ > --- POWER ------------ Ion Engine Ion Engine > --- PROPULSION ------- Aluminum Leg Aluminum Leg > --- UTILITY ---------- Small Storage Unit Targeting Computer Targeting Computer > --- WEAPON ----------- Light Assault Rifle Light Assault Rifle > --- INVENTORY -------- Aluminum Leg Wheel Wheel Heat Sink Heat Sink Visual Processing Unit Mini Grenade Launcher Improved Grenade Launcher [Rating: 10] Favorites ----------- Power Ion Engine Engine Ion Engine Propulsion Aluminum Leg Leg Aluminum Leg Utility Targeting Computer Storage Small Storage Unit Processor Targeting Computer Weapon Light Assault Rifle Energy Gun Medium Laser Ballistic Gun Light Assault Rifle Build | -11 -10 -9 ------- Run | Yrd Mat Mat Slots Evolved 2 | . . 2 Power 1 | . . 1 Propulsion . | . . . Utility 1 | . . 1 Weapon . | . . . Parts Attached 18 | 6 7 5 Power 3 | 1 1 1 Engine 3 | 1 1 1 Core . | . . . Reactor . | . . . Propulsion 5 | 2 1 2 Treads . | . . . Leg 5 | 2 1 2 Wheel . | . . . Hover . | . . . Flight . | . . . Utility 3 | 1 1 1 Device . | . . . Storage 1 | 1 . . Processor 2 | . 1 1 Hackware . | . . . Protection . | . . . Artifact . | . . . Weapon 7 | 2 4 1 Energy Gun 1 | 1 . . Energy Cannon . | . . . Ballistic Gun 6 | 1 4 1 Ballistic Cannon . | . . . Launcher . | . . . Special Weapon . | . . . Impact Weapon . | . . . Slashing Weapon . | . . . Piercing Weapon . | . . . Special Melee Weapon . | . . . Unidentified Prototypes . | . . . Parts Lost . | . . . Power . | . . . Propulsion . | . . . Utility . | . . . Weapon . | . . . Highest Loss Streak . | . . . To Critical Strikes . | . . . Average Backups 5 | 5 5 6 Power . | . 1 . Propulsion 2 | 2 2 2 Utility 2 | . 1 3 Weapon . | 1 . . Tool/Special . | . . . Unused Backups 11 | 2 1 8 Power . | . . . Propulsion 5 | 2 . 3 Utility 3 | . . 3 Weapon 3 | . 1 2 Tool/Special . | . . . Average Slot Usage (%) 99 | . 99 99 Engine 16 | . 14 21 Leg 25 | . 28 22 Storage 12 | . 14 11 Processor 16 | . 13 22 Energy Gun 3 | . 5 . Ballistic Gun 22 | . 22 22 Peak Build Rating 10 | 6 7 10 Average Rating 7 | 3 6 9 On Entrance 4 | . 6 7 Avg Prop Armor Cover (%) . | . . . Naked Turns . | . . . Heaviest Build 17 | 13 13 17 Greatest Support 20 | 20 20 20 Greatest Overweight (x) 3 | 3 . . Average Overweight (x) . | . . . Largest Inventory Capacity 8 | 8 8 8 Average Capacity 7 | 7 8 8 Most Carried 8 | 8 8 8 Average Carried 5 | 5 5 6 Final Capacity 8 | 8 8 8 Final Carried 8 | 4 8 5 Class Distribution -------------------- 100% | Mutant Dominant Class ---------------- Mutant | -10/Materials Mutant | -9/Materials Resources | -11 -10 -9 ----------- Run | Yrd Mat Mat Matter Collected 450 | 205 181 64 Remotely . | . . . Salvage Created 540 | . 265 275 Parts 46 | . 26 20 Haulers Intercepted . | . . . Recyclers Shooed 1 | . 1 . Parts Field Recycled . | . . . Retrieved Matter . | . . . Parts Self-Destructed . | . . . Prevented . | . . . Parts Restored . | . . . Kills | -11 -10 -9 ------- Run | Yrd Mat Mat Combat Hostiles Destroyed 16 | . 9 7 Guns 16 | . 9 7 Classes Destroyed 5 | . 4 1 Builder 1 | . 1 . Watcher 5 | . 2 3 Swarmer 10 | . 6 4 Grunt 5 | . 3 2 Sentry 1 | . . 1 Best Kill Streak 5 | . 3 5 Combat Bots Only 4 | . 3 4 Max Kills in Single Turn 2 | . 1 2 Gunslinging 1 | . . 1 Exploded . | . . . Melee . | . . . Uniques/NPCs Destroyed . | . . . Combat | -11 -10 -9 -------- Run | Yrd Mat Mat Hostile Shots Fired 85 | . 37 48 Missed 28 | . 11 17 Hits 57 | . 26 31 Projectile 57 | . 26 31 Damage Taken 419 | . 172 247 Core 65 | . 40 25 Absorbed by Shields . | . . . Ignored by Resistances 130 | . 56 74 Core Remaining (%) 92 | 100 84 . Volleys Fired 63 | . 37 26 Largest 2 | . 2 2 Hottest 70 | . 70 40 Shots Fired 126 | . 74 52 Gun 126 | . 74 52 Cannon . | . . . Launcher . | . . . Special . | . . . Kinetic 108 | . 56 52 Thermal 18 | . 18 . Explosive . | . . . Electromagnetic . | . . . Robot Hit Streak 18 | . 18 16 Robot Miss Streak 3 | . 2 3 Penetration Max . | . . . Secondary Targets 5 | . 3 2 Max Gunslinging Chain 1 | . 1 1 Shots Hit Robots 93 | . 52 41 Core Hits 40 | . 22 18 Critical Kills . | . . . Critical Parts Destroyed 1 | . . 1 Critical Strikes 3 | . 2 1 Burn 2 | . 2 . Destroy 1 | . . 1 Melee Attacks . | . . . Impact . | . . . Slashing . | . . . Piercing . | . . . Sneak Attacks . | . . . Combat Hostiles . | . . . Follow-up Attacks . | . . . Damage Inflicted 836 | . 489 347 Guns 836 | . 489 347 Cannons . | . . . Explosions . | . . . Melee . | . . . Ramming . | . . . Kinetic 672 | . 325 347 Thermal 164 | . 164 . Explosive . | . . . Electromagnetic . | . . . Impact . | . . . Slashing . | . . . Piercing . | . . . Highest Corruption . | . . . Average Corruption . | . . . Corruption Purged . | . . . Corruption Blocked . | . . . Overload Shots . | . . . Overflow Damage . | . . . Projectiles . | . . . Explosions . | . . . Melee . | . . . Knockbacks . | . . . Impact . | . . . Kinetic . | . . . Secondary . | . . . Self-Inflicted Damage . | . . . Shots . | . . . Rammed . | . . . Targets Rammed . | . . . Kicked . | . . . Crushed . | . . . Highest Temperature 90 | . 90 31 Average Temperature 23 | . 36 7 Received Heat Transfer 90 | . 24 66 Siege Activations . | . . . Martial Activations . | . . . Shielding Activations . | . . . Robots Disrupted . | . . . Combat Hostiles . | . . . Robots Corrupted . | . . . Combat Hostiles . | . . . Parts Fried . | . . . Impact Corruptions . | . . . Robots Melted . | . . . Combat Hostiles . | . . . Parts Melted 1 | . 1 . Heat Transferred 629 | . 629 . Parts Sabotaged . | . . . Parts Stolen . | . . . Parts Stripped . | . . . Power Chain Reactions . | . . . Alert | -11 -10 -9 ------- Run | Yrd Mat Mat Maximum Alert Level . | . . . Low Security (%) 100 | 100 100 100 Level 1 . | . . . Level 2 . | . . . Level 3 . | . . . Level 4 . | . . . Level 5 . | . . . High Security . | . . . Max Security . | . . . Peak Influence 129 | . 78 129 Initial 2 | . . 2 Average 26 | . 32 22 Influence Increases 461 | . 259 202 Destroy 0b10 Robot/C 320 | . 180 140 Destroy 0b10 Robot/NC 30 | . 15 15 Destroy Leader 70 | . 44 26 Successful Hack 26 | . 20 6 Lose Combat Pursuer 15 | . . 15 Influence Decreases 350 | . 251 99 Entered New Map 6 | . . 6 Time Decay 344 | . 251 93 Squads Dispatched 3 | . 2 1 Investigation 3 | . 2 1 Extermination . | . . . Reinforcement . | . . . Assault . | . . . Garrison . | . . . Intercept . | . . . Searches Triggered . | . . . Construction Impeded . | . . . Haulers Reinforced . | . . . Active Scanning Responses . | . . . Cargo Convoy Interrupts . | . . . Stealth | -11 -10 -9 --------- Run | Yrd Mat Mat Distress Signals 1 | . . 1 Communications Jammed . | . . . Distress Signals . | . . . Times Spotted 24 | . 12 12 Peak Tracking Total 5 | . 3 5 Tactical Retreats 1 | . . 1 Traps | -11 -10 -9 ------- Run | Yrd Mat Mat Traps Triggered 1 | . 1 . Indirectly . | . . . Trap Hack Attempts . | . . . Triggered . | . . . Disarmed . | . . . Reprogrammed . | . . . Reused . | . . . Traps Extracted . | . . . Installed . | . . . Triggered . | . . . Machines | -11 -10 -9 ---------- Run | Yrd Mat Mat Machines Disabled . | . . . Max in Single Turn . | . . . Machines Repaired . | . . . Machines Dismantled . | . . . Machines Sabotaged . | . . . Overloaded Fab Kills . | . . . Hacking | -11 -10 -9 --------- Run | Yrd Mat Mat Machines Accessed 10 | . 5 5 Terminals 8 | . 4 4 Fabricators . | . . . Repair Stations . | . . . Recycling Units 1 | . 1 . Scanalyzers 1 | . . 1 Garrison Access . | . . . Total Hacks 25 | . 15 10 Successful 17 | . 10 7 Failed 8 | . 5 3 Catastrophic 2 | . 2 . Database Lockouts . | . . . Manual 1 | . 1 . Terminals 21 | . 14 7 Fabricators . | . . . Repair Stations . | . . . Recycling Units 1 | . 1 . Scanalyzers 3 | . . 3 Garrison Access . | . . . Terminal Hacks 13 | . 9 4 Record 6 | . 6 . Prototype ID Bank 3 | . 2 1 Maintenance Status 1 | . . 1 Surveillance Status 1 | . . 1 Recall Investigation 1 | . . 1 Zone Layout 1 | . 1 . Fabricator Hacks . | . . . Repair Station Hacks . | . . . Recycling Unit Hacks 1 | . 1 . Report Inventory 1 | . 1 . Scanalyzer 3 | . . 3 Insert Component 2 | . . 2 Analyze 1 | . . 1 Garrison Access Hacks . | . . . Unauthorized Hacks . | . . . Terminals . | . . . Fabricators . | . . . Repair Stations . | . . . Recycling Units . | . . . Scanalyzers . | . . . Garrison Access . | . . . Data Cores Recovered . | . . . Used . | . . . Hacking Detections 6 | . 3 3 Full Trace Events 3 | . 2 1 Feedback Events . | . . . Feedback Blocked . | . . . Robot Schematics Acquired . | . . . Robots Built . | . . . Authchips . | . . . Time . | . . . Total Robot Build Rating . | . . . Part Schematics Acquired 1 | . . 1 Parts Built . | . . . Authchips . | . . . Time . | . . . Total Part Build Rating . | . . . Part Studies Acquired . | . . . Parts Repaired . | . . . Time . | . . . Parts Recycled . | . . . Recycled Matter . | . . . Retrieved Matter . | . . . Retrieved Components . | . . . Parts Scanalyzed 1 | . . 1 Part Schematics Acquired 1 | . . 1 Parts Damaged . | . . . Bothacking | -11 -10 -9 ------------ Run | Yrd Mat Mat Used RIF Installer . | . . . Robots Hacked . | . . . Non-combat . | . . . Combat . | . . . Robot Hacks Applied . | . . . Relay Couplers Released . | . . . Fabnet Peak Effective % . | . . . Robots Rewired . | . . . Allies Hacked . | . . . Hacks Repelled . | . . . Allies | -11 -10 -9 -------- Run | Yrd Mat Mat Total Allies . | . . . Largest Group . | . . . Highest-Rated Group . | . . . Highest-Rated Ally . | . . . Total Orders . | . . . Ally Attacks . | . . . Total Damage . | . . . Kills . | . . . Allies Corrupted . | . . . Allies Melted . | . . . Intel | -11 -10 -9 ------- Run | Yrd Mat Mat Active Infowar (turns) . | . . . Robot Analysis Total . | . . . Derelict Logs Recovered . | . . . Drone Launches . | . . . Drone Recoveries . | . . . Exploration | -11 -10 -9 ------------- Run | Yrd Mat Mat Turns Passed 1093 | 76 632 385 Spaces Moved 680 | 45 405 230 Core 16 | 16 . . Treads . | . . . Legs 664 | 29 405 230 Wheels . | . . . Hover . | . . . Flight . | . . . Fastest Speed 50 | 50 120 120 Average Speed 120 | 131 120 120 Slowest Speed 200 | 200 120 120 Overloaded Moves . | . . . Propulsion Burnouts . | . . . Robots Hopped . | . . . Potential Cave-ins . | . . . Cave-ins Triggered . | . . . Exploration Rate (%) 32 | 4 65 28 Regions Visited 2 Branch Regions . Pre-discovered Areas . | . . . Known Exits Taken . | . . . Unknown Exits Taken 2 | 1 1 . Scrap Searched . | . . . Spaces Dug . | . . . Terrain Destroyed . | . . . Melee . | . . . Projectile . | . . . AOE . | . . . Terrain Rammed . | . . . Walls Destroyed . | . . . Machines Disabled . | . . . Actions | -11 -10 -9 --------- Run | Yrd Mat Mat Total 850 | 61 491 298 Wait 49 | 1 22 26 Move 678 | 44 404 230 Hop . | . . . Pick Up 26 | 8 13 5 Fast Attach 4 | 4 . . Attach 9 | 2 5 2 Detach . | . . . Swap 5 | . 2 3 Drop 16 | 2 8 6 Fire 63 | . 37 26 Melee . | . . . Ram . | . . . Kick . | . . . Crush . | . . . Escape Stasis . | . . . Rewire . | . . . Trap . | . . . Miscellaneous . | . . . Route ------- -11/Scrapyard -10/Materials (discovered 5 exits: *Mat x3 / [*Min x2]) -9/Materials History --------- Turn | Location | Event 12 | -11/Scrapyard | Discovered new exit (range 16) 77 | -11/Scrapyard | Entered Materials 81 | -10/Materials | Discovered new exit (range 16) 136 | -10/Materials | Discovered new exit (range 14) 292 | -10/Materials | Discovered new exit (range 10) 330 | -10/Materials | Build established: Mutant 409 | -10/Materials | Discovered new exit (range 15) 687 | -10/Materials | Discovered new exit (range 3) 709 | -10/Materials | Entered another Materials area 709 | -9/Materials | Evolved 2 slots: Power x1, Utility x1 1094 | -9/Materials | Self-destructed Last Messages --------------- R-06 Scavenger collects Flight Unit. K-01 Serf collects debris. Dropped Aluminum Leg. R-06 Scavenger collects Aluminum Leg. K-01 Serf collects debris. K-01 Serf cleans the Nuclear Reactor. Acquired 10 matter. K-01 Serf collects debris. Acquired Lgt. Assault Rifle. K-01 Serf collects debris. Dropped Lgt. Assault Rifle. K-01 Serf collects debris. Connecting with Terminal... >>Enumerate(Maintenance) Found 23 registered maintenance bots. 11 Workers 6 Builders 1 Tunneler 5 Recyclers Downloaded coordinate data. Map ----- +----------------------------------------------------+ | | | | | | | | | | | | | | | | | ?????????????????????????????????????????????????? | | ?????????????????????????????????????????????????? | | ?????????????????????????????????????????????????? | | ?????????????????????????????????????????????????? | | ?????????????????????????????????????????????????? | | ?????????????????????????????????????????????????? | | ?????????????????????????????????????????????????? | | ?????????????????????????????????????????????????? | | ?????????????????????????????????????????????????? | | ?????????????????????????????????????????????????? | | ?????????????????????????????????????????????????? | | ?????????????????????????????????????????????????? | | ?????????????????????????????????????????????????? | | ??????????????????????###+###????????????????????? | | ???????????#+########## #????????????????????? | | ?????????? k #????????????????????? | | ?????????? T #????????????????????? | | ?????????? @ #????????????????????? | | ?????????????????##+### #????????????????????? | | ??????????????????????## ##????????????????????? | | ???????????????????????# #?????????????????????? | | ???????????????????????# #?????????????????????? | | ???????????????????????# #?????????????????????? | | ????? ???????????????# #?????????????????????? | | ????? #??????????????# #?????????????????????? | | ????# #?#######?????## ##????????????????????? | | ????# #?# ####### ###+####?????????????? | | ????# #?# = = #?????????????? | | ????# #?# =%%== #?????????????? | | ????# #?# %!%=* [ #?????????????? | | ????# #?# #######=* #?????????????? | | ????# #?## ##?????##a #?????????????? | | ????# #??# #???????# #?????????????? | | ????# #??# %#???????# ! ???????????? | | ????# #??# #???????+ ??????????? | | ????# #??# #???????# ??????????? | | ????# #??# #???????# ??????????? | | ##### #??# #???????# """ """ ""???????????? | | #??# #???????# """ """ "????????????? | | ##### [#??# #???????# """ ""???"????????????? | | ????###+#### %#???????# ?? ????????????????? | | ##### T% %+ #???????# ??? ????????????????? | +----------------------------------------------------+ Best States ------------- Heat Dissipation 28 Energy Generation 15 Energy Capacity 400 Matter Stores 300 Matter Capacity 300 Sight Range 16 Terrain Scan Density 10 Resistance: KI 20 Resistance: TH 20 Resistance: EX 20 Resistance: EM 20 Resistance: I 20 Resistance: S 20 Resistance: P 20 Evasion (%) 55 Targeting Accuracy 10 Offensive Hacking 10 Item Schematics ----------------- Heat Sink | -9/Materials | Scanalyzed Robot Schematics ------------------ None Fabricated ------------ Nothing Repaired ---------- Nothing Studied --------- None Alien Tech Used ----------------- None Achievements -------------- None Challenges ------------ None Game ------ Seed LatentOvertunedWall Manual? 0 Play Time 00:19:02 Cumulative 2.7 hours Start 2025.10.23 @ 02:06:27 End 2025.10.23 @ 12:37:17 Sessions 3 Manual Loads 0 Difficulty Adventurer Special Mode None Game No. 5 Rogue 0 Adventurer 5 Explorer 0 Win Type - Total 0 Types 0/0/0/0/0/0/0/0/0/0 Lore% 2 Gallery% 6 Achievement% 8 Wizard Run 0 Options --------- Layout 1 ASCII 0 Keyboard 0 Movement Mouse Keybinds 0 Fullscreen 1 Font 32/SmallcapsGlow Map View 50x35 Zoom Use 10% Tactical HUD 0 Map Filters NONE Filters NONE Steam 1 RUN: 83621442-5bc6-4c94-9414-2dd3e78ef576